bitfinex-derivatives/quotes_ETHF0:USTF0_20250125
["timestamp","ask_amount","ask_price","bid_price","bid_amount"]
[1737839105222,0.48370088,3339.6,3339.4,0.47923]
[1737839105422,0.00449088,3339.6,3339.5,0.47923]
[1737839105614,0.49649088,3339.6,3339.5,0.47923]
[1737839106218,0.47925,3339.4,3339.2,4.17016]
[1737839106520,0.47925,3339.4,3339.2,3.68706]
[1737839106920,0.47925,3339.4,3339.3,0.47926]
[1737839107134,0.97571088,3339.6,3339.4,0.47923]
[1737839108325,0.49649088,3339.6,3339.2,3.2078]
[1737839108520,0.49649088,3339.6,3339.5,0.47923]
[1737839109815,0.00449088,3339.6,3339.5,0.47923]
[1737839110519,3.2078,3340.1,3339.5,0.47923]
[1737839110726,3.2078,3340.1,3340.0,0.47916]
[1737839111220,3.2078,3340.1,3340.0,2.75528359]
[1737839111426,3.692,3340.7,3340.6,0.47907]
[1737839111616,4.05464903,3340.7,3340.6,0.47907]
[1737839111814,0.74416733,3340.7,3340.6,3.68687]
[1737839112019,0.3815183,3340.7,3340.6,3.68687]
[1737839112313,0.00449088,3341.0,3340.6,3.2078]
[1737839112623,0.00449088,3341.0,3340.9,0.47903]
[1737839116222,12.53573806,3341.0,3339.3,3.2078]
[1737839116423,2.27612359,3340.3,3339.5,0.4731]
[1737839116624,5.11099856,3340.2,3339.3,3.2078]
[1737839116925,1.19768,3340.6,3339.3,3.2078]
[1737839116926,2.75520359,3340.6,3340.2,0.47913]
[1737839117127,0.88973175,3340.5,3340.2,0.47913]
[1737839117323,0.38053175,3340.4,3340.1,0.47913]
[1737839117521,0.85963175,3340.4,3340.1,0.47913]
[1737839117713,0.38053175,3340.4,3340.0,0.00449088]
[1737839118226,0.85963175,3340.4,3340.0,0.48363088]
[1737839118415,0.47912,3340.3,3340.0,0.00449088]
[1737839119018,0.47912,3340.3,3340.0,0.48365088]
[1737839119214,0.47912,3340.3,3340.0,0.00449088]
[1737839119723,0.47913,3340.2,3340.0,0.00449088]
[1737839120523,0.38053175,3340.2,3340.0,0.00449088]
[1737839120723,0.85966175,3340.2,3340.0,0.00449088]
[1737839121027,0.38053175,3340.2,3340.0,0.00449088]
[1737839121326,0.85966175,3340.2,3340.0,0.00449088]
[1737839124722,0.47914,3340.1,3340.0,0.00449088]
[1737839125125,0.96654,3340.1,3340.0,0.00449088]
[1737839125325,1.34707175,3340.1,3340.0,0.00449088]
[1737839126231,1.70981321,3340.1,3340.0,0.00449088]
[1737839136436,0.74327321,3340.1,3340.0,0.48365088]
[1737839136827,0.38053175,3340.1,3340.0,0.48365088]
[1737839138539,0.38053175,3340.3,3340.2,0.47912]
[1737839138741,0.4791,3340.4,3340.2,0.47912]
[1737839138933,0.84217453,3340.4,3340.2,0.47912]
[1737839139135,0.38053175,3340.3,3340.2,0.47912]
[1737839139336,0.38053175,3340.3,3340.1,1.97614]
[1737839139638,1.2227492,3340.3,3340.1,1.97614]
[1737839139839,0.38053175,3340.2,3340.1,1.97614]
[1737839140142,0.38053175,3340.2,3340.1,1.497]
[1737839140346,0.47912,3340.3,3340.1,1.97614]
[1737839140641,0.38053175,3340.2,3340.1,1.97614]
[1737839141243,0.47912,3340.3,3340.1,1.497]
[1737839141244,0.85965175,3340.3,3340.1,1.497]
[1737839141745,0.47912,3340.3,3340.1,1.497]
[1737839143247,1.22267373,3340.3,3340.1,1.497]
[1737839143545,0.74355373,3340.2,3340.1,1.97613]
[1737839143746,0.38053175,3340.2,3340.1,1.97613]
[1737839143938,0.74355373,3340.3,3340.1,1.97613]
[1737839144339,1.22267373,3340.3,3340.1,1.97613]
[1737839144655,0.74355373,3340.2,3340.1,1.97613]
[1737839144844,0.74355373,3340.5,3340.1,1.497]
[1737839145043,0.74355373,3340.5,3340.4,0.4791]
[1737839146150,0.74355373,3340.5,3340.1,1.497]
[1737839146151,0.74355373,3340.5,3340.3,0.4791]
[1737839146743,1.22263373,3340.5,3340.3,0.4791]
[1737839146951,0.74355373,3340.4,3340.3,0.4791]
[1737839147338,0.38053175,3340.4,3340.2,3.2078]
[1737839147644,0.38053175,3340.4,3340.3,0.47911]
[1737839147645,0.36302198,3340.4,3340.3,0.47911]
[1737839147846,0.74355373,3340.6,3340.4,0.47909]
[1737839148348,0.74355373,3340.5,3340.4,0.47909]
[1737839148844,0.36355783,3340.6,3340.5,0.47908]
[1737839149048,1.2250953,3340.7,3340.5,0.25965298]
[1737839149249,0.7460353,3340.6,3340.5,0.25965298]
[1737839149651,3.4781,3340.8,3340.2,3.2078]
[1737839149652,2.979,3340.8,3340.2,3.2078]
[1737839149842,2.979,3340.8,3340.3,1.19779]
[1737839149843,0.74105907,3340.7,3340.3,1.19779]
[1737839150038,0.74105907,3340.7,3340.6,0.47907]
[1737839150942,0.74089854,3340.8,3340.7,0.47906]
[1737839151147,2.75515359,3340.9,3340.8,0.4795]
[1737839151346,3.0168698,3340.9,3340.8,0.994]
[1737839152054,3.0168698,3340.9,3340.8,1.47304]
[1737839153150,3.0168698,3340.9,3340.8,0.994]
[1737839153350,3.4958998,3340.9,3340.8,0.994]
[1737839159052,3.4958998,3340.9,3340.8,0.54460747]
[1737839159355,3.9731998,3340.9,3340.8,0.54460747]
[1737839159552,1.69707621,3340.9,3340.8,0.54460747]
[1737839161254,1.21804621,3340.9,3340.8,0.54460747]
[1737839161760,1.69707621,3340.9,3340.8,0.54460747]
[1737839168879,1.21804621,3340.9,3340.8,0.54460747]
[1737839169072,1.69707621,3340.9,3340.8,0.54460747]
[1737839171878,2.77328026,3340.9,3340.8,0.30495713]
[1737839177484,2.29425026,3340.9,3340.8,0.30495713]
[1737839177677,2.29425026,3340.9,3340.8,0.78399713]
[1737839177879,2.29425026,3340.9,3340.8,0.30495713]
[1737839178489,2.77328026,3340.9,3340.8,0.30495713]
[1737839179076,1.81695026,3340.9,3340.8,0.30495713]
[1737839179282,0.74074621,3340.9,3340.8,1.86020118]
[1737839179483,0.00449088,3341.0,3340.8,1.38116118]
[1737839179779,0.00449088,3341.0,3340.9,0.47903]
[1737839187802,0.00449088,3341.0,3340.9,5.47903]
[1737839191098,0.00449088,3341.0,3340.9,6.42103]
[1737839191896,0.00449088,3341.0,3340.9,1.42103]
[1737839192096,0.00449088,3341.0,3340.9,6.42103]
[1737839192401,0.00449088,3341.0,3340.9,1.42103]
[1737839198703,0.3660122,3341.6,3341.1,1.19749]
[1737839198906,0.3660122,3341.6,3341.5,3.68674]
[1737839202113,0.487,3341.7,3341.6,0.47893]
[1737839202307,0.96591,3341.7,3341.6,0.47893]
[1737839202503,0.8531013,3341.7,3341.6,0.47893]
[1737839203105,1.3320113,3341.7,3341.6,0.47893]
[1737839203713,2.40768632,3341.7,3341.6,0.47893]
[1737839203902,1.92877632,3341.7,3341.6,0.47893]
[1737839205821,0.8531013,3341.7,3341.6,0.47893]
[1737839206612,1.21670811,3341.7,3341.6,0.47893]
[1737839227723,2.29240945,3341.7,3341.6,0.47893]
[1737839236925,7.29240945,3341.7,3341.1,3.2078]
[1737839237122,1.07570134,3341.3,3340.4,3.2078]
[1737839237317,1.07570134,3340.7,3340.6,0.47907]
[1737839237520,1.80540945,3340.7,3340.6,0.47907]
[1737839237721,1.80540945,3340.7,3340.4,3.2078]
[1737839237920,1.07570134,3340.5,3340.4,3.68689]
[1737839238128,0.72970811,3340.5,3340.4,3.6869]
[1737839238518,0.73015279,3340.5,3340.4,3.6869]
[1737839240033,0.3661013,3340.5,3340.4,3.6869]
[1737839240331,0.472,3340.6,3340.5,0.47908]
[1737839240332,0.8381013,3340.6,3340.5,0.47908]
[1737839244834,0.8381013,3340.6,3340.4,3.2078]
[1737839244835,0.47908,3340.5,3340.4,3.2078]
[1737839245038,2.41668264,3340.5,3340.4,3.2078]
[1737839247037,2.77988344,3340.5,3340.4,3.2078]
[1737839249037,2.30080344,3340.5,3340.1,0.47914]
[1737839249239,1.07570134,3340.2,3340.1,0.47914]
[1737839249441,1.44180264,3340.2,3340.1,0.47914]
[1737839253244,1.44180264,3340.2,3340.0,3.21229088]
[1737839253543,1.3887986,3340.1,3340.0,3.21229088]
[1737839258248,0.9096586,3340.1,3340.0,3.69145088]
[1737839258439,0.5196,3340.1,3340.0,3.69145088]
[1737839259445,1.38860544,3340.1,3340.0,3.21229088]
[1737839260042,1.38860544,3340.1,3338.9,1.19827]
[1737839260043,0.47923,3339.5,3339.4,0.4906]
[1737839260350,1.07570134,3339.5,3339.3,3.2078]
[1737839260552,0.98244,3339.4,3339.3,3.68706]
[1737839260843,0.5032,3339.4,3339.3,3.68706]
[1737839262651,0.5032,3339.4,3339.3,0.47926]
[1737839263753,0.5032,3339.4,3339.2,1.46776]
[1737839264260,0.5032,3339.4,3339.3,0.47926]
[1737839267667,0.5032,3339.4,3339.2,1.46776]
[1737839267867,0.47928,3339.2,3339.1,0.47928]
[1737839268464,0.86963494,3339.3,3339.1,0.47928]
[1737839268669,0.86963494,3339.3,3339.0,0.49509088]
[1737839268859,0.86963494,3339.3,3339.2,0.47927]
[1737839269058,0.39037494,3339.3,3339.2,0.47927]
[1737839269257,0.86963494,3339.3,3339.1,0.47927]
[1737839269661,0.39037494,3339.3,3339.0,0.49509088]
[1737839270060,0.47929,3339.1,3339.0,0.49509088]
[1737839270469,0.47928,3339.2,3339.0,0.97439088]
[1737839270662,0.39037494,3339.3,3339.0,0.49509088]
[1737839270860,0.47928,3339.1,3339.0,0.49509088]
[1737839271262,0.86965494,3339.1,3339.0,0.49509088]
[1737839273868,0.39037494,3339.1,3339.0,0.49509088]
[1737839274372,0.86966494,3339.1,3339.0,0.49509088]
[1737839277672,0.39037494,3339.1,3339.0,0.49509088]
[1737839277973,0.47928,3339.2,3339.0,0.49509088]
[1737839278174,0.86965494,3339.2,3339.0,0.49509088]
[1737839278475,0.39037494,3339.1,3339.0,0.49509088]
[1737839279378,0.39037494,3339.1,3339.0,0.97439088]
[1737839279770,0.86966494,3339.1,3339.0,0.49509088]
[1737839280077,0.39037494,3339.1,3339.0,0.97439088]
[1737839281272,0.39037494,3339.3,3339.2,0.47927]
[1737839281770,1.46769062,3339.3,3339.2,0.47927]
[1737839282169,0.47929,3339.1,3339.0,0.00449088]
[1737839282370,1.19831,3338.9,3337.6,3.2078]
[1737839282675,0.47949,3337.7,3337.6,3.2078]
[1737839283381,0.47951,3337.6,3337.4,0.5161]
[1737839283680,1.07731568,3337.5,3337.4,0.5161]
[1737839284879,1.07731568,3337.5,3337.0,0.4809]
[1737839285073,1.07731568,3337.1,3337.0,0.9867]
[1737839285672,2.75811177,3337.4,3337.0,1.46629]
[1737839285872,0.47955,3337.3,3337.0,0.9867]
[1737839286182,2.75810177,3337.4,3337.0,1.46629]
[1737839286877,2.75810177,3337.4,3337.1,0.47957]
[1737839288078,2.75810177,3337.4,3337.0,1.46628]
[1737839289478,0.47955,3337.3,3337.0,0.9867]
[1737839289684,0.47955,3337.3,3337.0,1.46629]
[1737839290881,2.27857177,3337.4,3337.0,1.46629]
[1737839291078,2.75810177,3337.4,3337.0,1.46629]
[1737839294279,0.47956,3337.3,3337.0,0.9867]
[1737839295285,0.47957,3337.2,3337.0,0.9867]
[1737839296089,0.47957,3337.1,3337.0,0.9867]
[1737839297888,0.47957,3337.1,3336.9,3.2078]
[1737839297889,0.9835,3337.3,3336.9,3.2078]
[1737839298079,0.47959,3337.0,3336.9,3.2078]
[1737839299590,2.75816177,3337.0,3336.9,3.2078]
[1737839299790,2.27857177,3337.0,3336.9,3.2078]
[1737839300385,2.27857177,3337.0,3336.9,3.6874]
[1737839300686,2.27857177,3337.0,3336.9,3.2078]
[1737839300883,2.27857177,3337.0,3335.8,3.2078]
[1737839301079,0.47978,3335.7,3335.4,3.2078]
[1737839301280,2.27857177,3335.5,3335.4,3.2078]
[1737839301481,2.27857177,3335.5,3335.0,3.2078]
[1737839301685,2.27857177,3335.1,3334.2,3.2078]
[1737839301881,2.27857177,3334.9,3334.8,0.47989]
[1737839302081,2.27857177,3334.9,3334.2,3.2078]
[1737839302282,2.27857177,3334.6,3334.2,3.2078]
[1737839302483,2.27857177,3334.3,3334.2,3.68779]
[1737839302979,2.27857177,3334.6,3334.2,3.2078]
[1737839303181,2.27857177,3335.0,3334.2,3.2078]
[1737839303388,2.27857177,3335.0,3333.8,0.4942]
[1737839303389,2.27857177,3335.0,3334.9,0.47989]
[1737839304183,0.00449775,3335.2,3335.1,0.47986]
[1737839305684,0.00449775,3335.2,3335.1,3.68766]
[1737839306091,0.00449775,3335.2,3335.1,0.47986]
[1737839307892,0.00449775,3335.2,3335.1,3.68766]
[1737839309285,3.2078,3335.6,3335.1,3.68766]
[1737839309491,2.27857177,3335.9,3335.8,0.47976]
[1737839311691,5.49086952,3336.2,3335.6,0.486]
[1737839311890,5.97056952,3336.2,3335.6,0.486]
[1737839312190,0.47972,3336.1,3335.9,0.47974]
[1737839312898,5.97057952,3336.2,3335.9,0.47974]
[1737839313300,5.49086952,3336.2,3335.9,0.47974]
[1737839313792,5.49086952,3336.2,3335.6,0.486]
[1737839313992,5.49086952,3336.2,3335.9,0.47974]
[1737839314596,5.49086952,3336.2,3335.6,0.486]
[1737839314900,5.49086952,3336.2,3336.1,0.47972]
[1737839315097,5.49086952,3336.2,3335.9,0.47973]
[1737839315398,5.49086952,3336.2,3336.0,0.47972]
[1737839317094,5.49086952,3336.2,3335.6,0.4886]
[1737839317496,5.49086952,3336.2,3336.0,0.47972]
[1737839318491,5.49086952,3336.2,3335.6,0.4886]
[1737839318888,5.49086952,3336.2,3336.0,0.47972]
[1737839319093,5.49086952,3336.2,3335.6,0.4886]
[1737839319487,5.49086952,3336.2,3336.0,0.47973]
[1737839320395,5.49086952,3336.2,3336.1,0.47972]
[1737839320600,5.88019774,3336.2,3336.1,0.47972]
[1737839322300,5.49086952,3336.2,3336.1,0.47972]
[1737839323798,5.88049751,3336.2,3336.1,0.47972]
[1737839324193,5.88050728,3336.2,3336.1,0.47972]
[1737839325295,0.47973,3336.1,3335.8,0.47975]
[1737839325500,0.4865,3336.0,3335.8,0.47975]
[1737839325703,0.4865,3336.0,3335.9,0.47974]
[1737839325901,0.87643608,3336.0,3335.9,0.47974]
[1737839329299,0.38993608,3336.0,3335.9,0.47974]
[1737839329703,0.38993608,3336.1,3336.0,0.47973]
[1737839331004,5.49086952,3336.2,3336.0,0.47973]
[1737839331005,0.00449775,3336.2,3336.0,3.2078]
[1737839331208,0.00449775,3336.2,3336.1,1.47712]
[1737839334903,0.00449775,3336.2,3336.1,10.47712]
[1737839345919,2.27857177,3337.4,3336.1,14.9974]
[1737839346118,0.3905025,3337.1,3337.0,0.47959]
[1737839348319,2.28306952,3337.4,3337.1,0.47957]
[1737839348525,0.39049254,3337.2,3337.1,0.47957]
[1737839348724,0.39499029,3337.4,3337.3,0.47954]
[1737839349522,0.39499029,3337.4,3336.7,1.19907]
[1737839349523,2.67356206,3337.4,3336.7,1.19907]
[1737839349719,0.47961,3336.9,3336.1,12.2078]
[1737839349916,1.98293,3336.8,3336.7,0.47963]
[1737839350115,2.37342254,3336.8,3336.7,0.47963]
[1737839350623,1.89379254,3336.8,3336.7,0.47963]
[1737839357527,1.37839254,3336.8,3336.7,0.47963]
[1737839357721,0.39049254,3336.8,3336.7,0.47963]
[1737839357915,0.75434158,3337.2,3337.1,0.47957]
[1737839358227,0.39049254,3337.2,3337.1,0.47957]
[1737839358424,0.75453885,3337.2,3337.1,0.47957]
[1737839358621,0.39049254,3337.2,3337.1,0.47957]
[1737839359922,0.75453314,3337.2,3337.1,0.47957]
[1737839360525,0.39049254,3337.2,3337.1,0.47957]
[1737839360829,0.00449775,3337.4,3337.3,0.47954]
[1737839365629,0.00449775,3337.4,3337.3,3.68734]
[1737839370636,0.00449775,3337.4,3337.3,0.47954]
[1737839374433,3.2078,3338.5,3337.3,3.2078]
[1737839374632,2.24208007,3338.4,3338.3,0.47939]
[1737839375225,1.76269007,3338.4,3338.3,0.47939]
[1737839376733,1.76269007,3338.4,3338.0,0.00449775]
[1737839376926,0.47942,3338.2,3338.0,0.48393775]
[1737839377132,1.23391007,3338.2,3338.0,0.48393775]
[1737839377331,0.75449007,3338.1,3338.0,0.48393775]
[1737839378131,0.36361671,3338.1,3338.0,0.48393775]
[1737839378436,0.75449007,3338.2,3338.1,0.47943]
[1737839378933,0.39087336,3338.2,3338.0,0.00449775]
[1737839379133,0.75449007,3338.3,3338.0,0.00449775]
[1737839379337,0.75449007,3338.3,3338.2,0.47941]
[1737839383044,0.39087336,3338.3,3338.2,0.47941]
[1737839383244,0.75441821,3338.3,3338.2,0.47941]
[1737839384641,0.39087336,3338.3,3338.2,0.47941]
[1737839385736,0.75462825,3338.3,3338.2,0.47941]
[1737839385939,0.39087336,3338.3,3338.2,0.47941]
[1737839386340,0.75470021,3338.3,3338.2,0.47941]
[1737839387349,0.75468309,3338.3,3338.2,0.47941]
[1737839388746,0.39087336,3338.3,3338.2,0.47941]
[1737839390247,0.75497438,3338.3,3338.2,0.47941]
[1737839390640,0.39087336,3338.3,3338.1,0.47943]
[1737839390849,0.75497438,3338.4,3338.3,0.4794]
[1737839401456,0.75497438,3338.4,3338.0,0.00449775]
[1737839401759,3.68723,3338.1,3338.0,0.00449775]
[1737839402056,0.47952,3337.5,3336.9,0.4796]
[1737839402254,0.521,3337.4,3336.8,3.6798]
[1737839402454,0.87042336,3337.3,3337.0,0.47957]
[1737839402661,0.87042336,3337.3,3337.0,0.47959]
[1737839403051,0.87042336,3337.3,3336.8,0.00449775]
[1737839403052,3.2078,3337.1,3336.8,0.00449775]
[1737839403249,0.4796,3336.9,3336.8,0.00449775]
[1737839403456,1.23507671,3336.9,3336.8,0.00449775]
[1737839404857,5.75547671,3336.9,3336.1,9.0]
[1737839405063,0.4797,3336.2,3336.1,9.0]
[1737839405253,0.39087336,3336.2,3336.1,9.0]
[1737839405557,0.86687336,3336.2,3336.1,9.0]
[1737839406258,0.9557,3336.2,3336.1,9.0]
[1737839407851,5.9557,3336.2,3336.1,8.60341635]
[1737839408063,7.34164794,3336.2,3336.1,8.60341635]
[1737839410960,6.86194794,3336.2,3335.8,0.00449775]
[1737839411151,6.86194794,3336.2,3334.4,3.2078]
[1737839411152,0.47986,3335.1,3334.4,3.2078]
[1737839411356,5.48637177,3335.1,3334.4,3.2078]
[1737839411953,2.75835177,3335.7,3335.2,0.47984]
[1737839413160,3.2078,3335.6,3334.9,3.2078]
[1737839413363,2.27857177,3335.4,3334.9,3.2078]
[1737839413863,2.75839177,3335.4,3334.9,3.68768]
[1737839414359,2.27857177,3335.4,3334.9,3.68768]
[1737839414561,2.75839177,3335.4,3335.0,0.47987]
[1737839415360,2.27857177,3335.4,3335.0,0.47987]
[1737839415562,2.27857177,3335.4,3334.9,3.2078]
[1737839415862,2.27857177,3335.4,3335.0,0.47987]
[1737839416260,2.27857177,3335.4,3334.9,3.2078]
[1737839416458,0.47985,3335.2,3334.9,3.2078]
[1737839416659,0.4938,3335.3,3335.0,0.47987]
[1737839417361,0.4938,3335.3,3335.2,0.47985]
[1737839417563,0.4938,3335.3,3334.9,3.2078]
[1737839417861,0.4938,3335.3,3335.0,0.47987]
[1737839418160,0.4938,3335.3,3335.1,0.47985]
[1737839418361,0.4938,3335.3,3335.0,0.47987]
[1737839418560,0.97363,3335.3,3334.9,3.68768]
[1737839418762,0.97363,3335.3,3334.9,3.2078]
[1737839419061,0.4938,3335.3,3335.0,0.47987]
[1737839422157,0.4938,3335.3,3334.6,0.47993]
[1737839422356,0.4938,3335.3,3335.0,0.47987]
[1737839423056,0.4938,3335.3,3335.1,0.47985]
[1737839425162,0.4938,3335.3,3334.5,0.4849]
[1737839425365,0.4938,3335.3,3335.1,0.47986]
[1737839427167,0.4938,3335.3,3335.1,0.47985]
[1737839427369,0.4938,3335.3,3334.5,0.4849]
[1737839427666,0.4938,3335.3,3335.1,0.47985]
[1737839427866,0.4938,3335.3,3334.6,1.67974]
[1737839428067,0.4938,3335.3,3334.6,0.47993]
[1737839428562,3.2078,3335.6,3335.5,0.4798]
[1737839432659,2.27857177,3336.0,3335.3,0.478]
[1737839432869,0.78378689,3335.9,3335.3,0.478]
[1737839433065,3.2078,3336.1,3335.5,1.19951]
[1737839433258,3.2078,3336.1,3335.3,0.478]
[1737839433259,3.06232664,3336.0,3335.8,0.47975]
[1737839433459,0.39541468,3335.9,3335.8,0.47975]
[1737839433673,0.7840018,3335.9,3335.8,0.47975]
[1737839449990,0.47979,3335.6,3335.3,0.47983]
[1737839450179,2.27857177,3335.5,3334.9,0.5147]
[1737839450383,0.7840018,3335.4,3335.3,0.47982]
[1737839453388,0.38858712,3335.4,3335.0,0.47987]
[1737839453592,0.7840018,3335.5,3335.4,0.47982]
[1737839455184,0.39541468,3335.5,3335.4,0.47982]
[1737839456391,0.78444573,3335.8,3335.7,0.47977]
[1737839457982,0.39541468,3335.8,3335.7,0.47977]
[1737839460997,0.78465045,3335.8,3335.7,0.47977]
[1737839463498,0.39541468,3335.8,3335.7,0.47977]
[1737839463699,2.78707177,3336.4,3336.2,0.4797]
[1737839463700,0.78473463,3336.3,3336.2,0.4797]
[1737839464194,0.78473463,3336.3,3335.7,0.47977]
[1737839464195,0.38933737,3336.3,3336.1,0.47972]
[1737839464501,0.78573585,3336.4,3336.3,0.47969]
[1737839466500,0.78573585,3336.4,3336.3,0.25243379]
[1737839472707,0.38933737,3336.4,3336.0,1.69052]
[1737839472905,0.7902336,3336.5,3336.4,0.47967]
[1737839474194,0.00449775,3336.5,3336.4,0.47967]
[1737839475403,0.00449775,3336.5,3336.4,1.45187]
[1737839477104,0.00449775,3336.5,3336.4,4.65967]
[1737839477405,3.7052,3337.3,3337.2,0.47956]
[1737839477606,0.77867722,3337.3,3337.2,0.47956]
[1737839477806,0.3902988,3337.5,3337.0,0.47959]
[1737839478006,1.25810559,3337.5,3337.2,0.47956]
[1737839478313,0.77858559,3337.4,3337.3,0.47953]
[1737839478499,0.77858559,3337.5,3337.2,0.47956]
[1737839478702,0.77858559,3337.4,3337.3,0.47954]
[1737839478896,0.77858559,3337.4,3337.1,0.4889]
[1737839479101,0.3902988,3337.3,3337.1,0.4889]
[1737839479313,0.77828162,3337.5,3337.4,0.47953]
[1737839479908,0.3902988,3337.5,3337.4,0.47953]
[1737839480215,0.00449775,3337.7,3337.6,0.4795]
[1737839480709,0.00449775,3337.7,3337.3,0.47954]
[1737839480910,0.47839775,3337.7,3337.3,0.47954]
[1737839481103,1.2559219,3337.7,3337.2,3.2078]
[1737839481300,1.25482415,3337.6,3337.4,0.47952]
[1737839481500,1.27992415,3337.5,3337.4,0.47952]
[1737839482317,1.27992415,3337.5,3337.2,3.2078]
[1737839482510,0.3897062,3337.4,3337.3,0.47954]
[1737839485902,0.77762523,3337.4,3337.3,0.47954]
[1737839486309,0.77764022,3337.4,3337.3,0.47954]
[1737839486708,0.3897062,3337.4,3337.3,0.47954]
[1737839486915,0.77763455,3337.4,3337.3,0.47954]
[1737839487314,0.3897062,3337.4,3337.3,0.47954]
[1737839487916,0.00449775,3337.7,3337.0,0.00449775]
[1737839488118,0.00449775,3337.7,3337.6,0.4795]
[1737839488614,0.48299775,3337.7,3337.6,0.4795]
[1737839488816,0.87284407,3337.7,3337.6,0.4795]
[1737839489915,1.26079861,3337.7,3337.6,0.4795]
[1737839494716,0.87284407,3337.7,3337.6,0.4795]
[1737839496120,1.26093122,3337.7,3337.6,0.4795]
[1737839496316,1.2609647,3337.7,3337.6,0.4795]
[1737839496522,0.39434407,3337.7,3337.6,0.4795]
[1737839496725,0.00449775,3337.7,3337.6,0.4795]
[1737839500526,0.00449775,3337.7,3337.6,2.75807177]
[1737839500723,3.2078,3338.7,3337.8,0.47947]
[1737839500724,0.38984632,3337.9,3337.8,0.47947]
[1737839500921,0.77875653,3338.6,3338.4,0.47938]
[1737839501116,0.77875653,3338.5,3338.4,0.47938]
[1737839502327,1.25809653,3338.7,3338.1,1.0011]
[1737839502522,0.47934,3338.7,3338.6,0.47936]
[1737839502731,0.47934,3338.7,3338.6,0.25535521]
[1737839502732,0.77884858,3338.7,3338.6,0.25535521]
[1737839508328,0.77884858,3338.7,3338.2,1.67795]
[1737839508531,0.77884858,3338.6,3338.5,0.47937]
[1737839508732,0.78334633,3338.8,3338.3,0.4794]
[1737839508935,0.77884858,3338.7,3338.6,0.47936]
[1737839509233,0.77821311,3338.8,3338.7,0.47934]
[1737839509535,0.77821416,3338.8,3338.7,0.47934]
[1737839511636,0.77821416,3338.8,3338.6,0.47934]
[1737839511835,0.77821416,3338.8,3338.3,3.2078]
[1737839512338,0.77821416,3338.8,3338.6,0.47935]
[1737839512931,3.2078,3338.7,3338.1,0.4815]
[1737839513130,0.47939,3338.4,3338.1,0.47942]
[1737839513331,0.97991,3338.3,3338.0,0.47944]
[1737839513536,0.77371641,3338.2,3338.0,0.47944]
[1737839513926,0.77371641,3338.2,3337.9,3.2078]
[1737839514130,0.47944,3338.1,3337.9,3.2078]
[1737839514339,1.25315641,3338.1,3337.9,3.68725]
[1737839514636,0.77371641,3338.0,3337.9,3.68725]
[1737839515928,0.47948,3337.8,3337.5,3.6873]
[1737839516127,0.5053,3337.7,3337.5,3.2078]
[1737839516332,0.77371641,3337.6,3337.5,3.68731]
[1737839517836,0.38527948,3337.6,3337.5,3.68731]
[1737839518139,0.77404874,3338.1,3338.0,0.47944]
[1737839519434,0.77420428,3338.1,3337.7,3.47726177]
[1737839519642,0.38553041,3338.0,3337.9,0.47946]
[1737839519849,1.2536133,3338.3,3338.2,0.47941]
[1737839520840,0.7742133,3338.3,3338.2,0.47941]
[1737839521041,0.7742133,3338.3,3337.5,3.2078]
[1737839521243,0.47948,3337.8,3337.7,0.47948]
[1737839522248,0.7743023,3337.8,3337.7,0.47948]
[1737839523046,0.47949,3337.7,3337.5,3.6873]
[1737839523241,0.86502041,3337.7,3337.6,0.4795]
[1737839523435,1.25385653,3337.7,3337.6,0.4795]
[1737839524332,0.77436653,3337.7,3337.6,0.4795]
[1737839526040,0.38882503,3337.8,3337.7,0.47949]
[1737839526241,0.77454227,3337.8,3337.7,0.47949]
[1737839528839,0.77454227,3337.8,3337.3,0.4852]
[1737839529039,0.77454227,3337.8,3337.6,0.47949]
[1737839530142,0.77454227,3337.8,3337.3,0.4852]
[1737839530343,1.25402227,3337.8,3337.6,0.4795]
[1737839530543,0.77454227,3337.7,3337.6,0.4795]
[1737839531742,0.38571724,3337.7,3337.6,0.4795]
[1737839531942,0.77454227,3337.8,3337.6,0.4795]
[1737839533746,1.25401227,3337.8,3337.6,0.4795]
[1737839533942,0.77454227,3337.7,3337.6,0.4795]
[1737839534741,0.77454227,3337.7,3337.5,0.4795]
[1737839535450,0.47954,3337.3,3337.2,0.5098]
[1737839535649,0.77443845,3337.5,3337.0,0.00449775]
[1737839535844,0.47957,3337.1,3337.0,0.00449775]
[1737839536048,0.86528724,3337.1,3337.0,0.00449775]
[1737839536256,1.2539849,3337.1,3337.0,0.00449775]
[1737839537354,2.27857177,3337.0,3336.4,0.83666829]
[1737839537553,2.27857177,3337.0,3336.4,0.35700829]
[1737839537554,0.47965,3336.6,3336.4,0.35700829]
[1737839537753,1.0088,3336.5,3336.4,0.35700829]
[1737839537948,1.39451724,3336.5,3336.4,0.35700829]
[1737839538253,1.39451724,3336.5,3336.4,0.83667829]
[1737839538445,1.39451724,3336.5,3336.4,0.47967]
[1737839539353,1.0088,3336.5,3336.4,0.47967]
[1737839539856,1.39403001,3336.5,3336.4,0.47967]
[1737839540044,3.2078,3336.7,3336.6,0.47964]
[1737839540247,3.59303918,3336.7,3336.6,0.47964]
[1737839540445,3.2078,3336.7,3336.6,0.47964]
[1737839542059,0.00449775,3336.8,3336.7,0.47963]
[1737839542366,0.38973764,3336.8,3336.7,0.47963]
[1737839542549,0.86935764,3336.8,3336.5,0.47964]
[1737839542750,0.90843989,3336.7,3336.5,0.47964]
[1737839542956,0.38523989,3336.6,3336.2,3.2078]
[1737839543158,0.47969,3336.3,3336.2,3.2078]
[1737839544056,0.511,3336.3,3336.2,3.2078]
[1737839544352,0.89623989,3336.3,3336.2,3.2078]
[1737839545265,0.511,3336.3,3336.2,3.6875]
[1737839547259,0.511,3336.3,3336.2,0.4797]
[1737839548562,0.511,3336.3,3336.1,0.00449775]
[1737839549061,0.511,3336.3,3336.2,0.4797]
[1737839550156,1.0148,3336.7,3336.1,0.00449775]
[1737839550362,0.47966,3336.6,3336.3,0.47968]
[1737839550562,0.86436297,3336.6,3336.3,0.47968]
[1737839550760,0.47967,3336.5,3336.2,0.4797]
[1737839551253,0.38470297,3336.6,3336.1,0.00449775]
[1737839551457,0.47967,3336.5,3336.2,0.47969]
[1737839553165,0.47968,3336.4,3336.1,0.48420775]